[Event "Rapid Tournament (RAP)"]
[Site "Biel, Switzerland"]
[Date "2026.07.12"]
[Round "4.18"]
[White "Gautier, Anand"]
[Black "Jehnichen, Kai"]
[Result "1-0"]
[TimeControl "15 + 5"]
[WhiteTitle "-"]
[BlackTitle "-"]
[WhiteFideId "26010186"]
[BlackFideId "24684333"]
[WhiteElo "2223"]
[BlackElo "1903"]

1. e4 {[%clk 00:11:58]} {[%emt 00:03:12]} e5 {[%clk 00:15:07]} {[%emt
00:00:03]} 2. Nf3 {[%clk 00:12:01]} {[%emt 00:00:02]} Nc6 {[%clk 00:15:11]}
{[%emt 00:00:02]} 3. Bc4 {[%clk 00:12:03]} {[%emt 00:00:04]} Nf6 {[%clk
00:15:12]} {[%emt 00:00:03]} 4. d3 {[%clk 00:12:07]} {[%emt 00:00:02]} Bc5
{[%clk 00:15:06]} {[%emt 00:00:10]} 5. c3 {[%clk 00:12:09]} {[%emt 00:00:02]}
O-O {[%clk 00:15:07]} {[%emt 00:00:05]} 6. O-O {[%clk 00:12:12]} {[%emt
00:00:02]} d5 {[%clk 00:15:10]} {[%emt 00:00:01]} 7. exd5 {[%clk 00:12:15]}
{[%emt 00:00:03]} Nxd5 {[%clk 00:15:14]} 8. h3 {[%clk 00:12:11]} {[%emt
00:00:09]} Nb6 {[%emt 00:00:12]} 9. Bb5 {[%clk 00:12:07]} f6 {[%clk 00:15:06]}
{[%emt 00:00:15]} 10. Nbd2 {[%clk 00:11:02]} {[%emt 00:01:09]} a6 {[%clk
00:15:06]} {[%emt 00:00:06]} 11. Bxc6 {[%clk 00:11:04]} {[%emt 00:00:03]} bxc6
{[%clk 00:15:09]} {[%emt 00:00:02]} 12. Ne4 {[%clk 00:10:39]} {[%emt 00:00:30]}
Be7 {[%clk 00:15:12]} {[%emt 00:00:02]} 13. Ng3 {[%clk 00:10:38]} {[%emt
00:00:06]} Qd5 {[%clk 00:15:12]} {[%emt 00:00:06]} 14. Qe2 {[%clk 00:09:57]}
{[%emt 00:00:45]} c5 {[%clk 00:14:57]} {[%emt 00:00:20]} 15. c4 {[%clk
00:08:56]} {[%emt 00:01:06]} Qc6 {[%clk 00:14:55]} {[%emt 00:00:07]} 16. b3
{[%clk 00:08:42]} {[%emt 00:00:19]} a5 {[%clk 00:14:52]} {[%emt 00:00:08]} 17.
a4 {[%clk 00:08:38]} {[%emt 00:00:09]} Bb7 {[%clk 00:14:53]} {[%emt 00:00:03]}
18. Ba3 {[%clk 00:07:59]} {[%emt 00:00:45]} Rfe8 {[%clk 00:14:47]} {[%emt
00:00:10]} 19. Qe4 {[%clk 00:07:17]} {[%emt 00:00:47]} g6 {[%clk 00:14:39]}
{[%emt 00:00:13]} 20. Rfe1 {[%clk 00:06:56]} {[%emt 00:00:27]} Bf8 {[%clk
00:14:33]} {[%emt 00:00:11]} 21. Qxc6 {[%clk 00:06:52]} {[%emt 00:00:09]} Bxc6
{[%clk 00:14:35]} {[%emt 00:00:03]} 22. Ne4 {[%clk 00:06:56]} {[%emt 00:00:01]}
Nd7 {[%clk 00:14:30]} {[%emt 00:00:10]} 23. Rab1 {[%clk 00:06:10]} {[%emt
00:00:50]} Rad8 {[%clk 00:14:24]} {[%emt 00:00:11]} 24. Bb2 {[%clk 00:06:05]}
{[%emt 00:00:11]} h6 {[%clk 00:14:20]} {[%emt 00:00:09]} 25. Bc3 {[%clk
00:06:05]} {[%emt 00:00:04]} Ra8 {[%clk 00:14:18]} {[%emt 00:00:07]} 26. h4
{[%clk 00:05:07]} {[%emt 00:01:03]} Kf7 {[%clk 00:14:22]} {[%emt 00:00:02]} 27.
Ng3 {[%clk 00:04:42]} {[%emt 00:00:30]} h5 {[%clk 00:14:15]} {[%emt 00:00:12]}
28. Ne4 {[%clk 00:04:34]} {[%emt 00:00:12]} Be7 {[%clk 00:14:14]} {[%emt
00:00:07]} 29. Kf1 {[%clk 00:04:30]} {[%emt 00:00:09]} Nf8 {[%clk 00:14:17]}
{[%emt 00:00:01]} 30. Ke2 {[%clk 00:04:07]} {[%emt 00:00:28]} Ne6 {[%clk
00:14:21]} {[%emt 00:00:02]} 31. Kd2 {[%clk 00:03:54]} {[%emt 00:00:18]} Red8
{[%clk 00:14:14]} {[%emt 00:00:12]} 32. g3 {[%clk 00:03:51]} {[%emt 00:00:08]}
Nd4 {[%clk 00:14:09]} {[%emt 00:00:10]} 33. Nxd4 {[%clk 00:03:08]} {[%emt
00:00:48]} cxd4 {[%clk 00:14:11]} {[%emt 00:00:03]} 34. Bb2 {[%clk 00:03:05]}
{[%emt 00:00:08]} Rab8 {[%clk 00:14:08]} {[%emt 00:00:09]} 35. Kc2 {[%clk
00:03:08]} {[%emt 00:00:01]} Bb4 {[%clk 00:14:10]} {[%emt 00:00:03]} 36. Re2
{[%clk 00:03:03]} {[%emt 00:00:09]} Be7 {[%clk 00:13:50]} {[%emt 00:00:26]} 37.
Ra1 {[%clk 00:02:52]} {[%emt 00:00:16]} Bd7 {[%clk 00:13:30]} {[%emt 00:00:26]}
38. Ba3 {[%clk 00:02:50]} {[%emt 00:00:06]} Bb4 {[%clk 00:13:24]} {[%emt
00:00:11]} 39. Bxb4 {[%clk 00:02:44]} {[%emt 00:00:11]} Rxb4 {[%clk 00:13:24]}
{[%emt 00:00:05]} 40. Nd2 {[%clk 00:02:38]} {[%emt 00:00:10]} Bg4 {[%clk
00:13:20]} {[%emt 00:00:11]} 41. f3 {[%clk 00:02:41]} Bf5 {[%clk 00:13:23]}
{[%emt 00:00:01]} 42. Rg1 {[%clk 00:02:39]} {[%emt 00:00:08]} Rh8 {[%clk
00:13:17]} {[%emt 00:00:11]} 43. Rf2 {[%clk 00:02:31]} {[%emt 00:00:12]} Be6
{[%clk 00:13:12]} {[%emt 00:00:11]} 44. f4 {[%clk 00:02:31]} {[%emt 00:00:05]}
exf4 {[%clk 00:13:10]} {[%emt 00:00:07]} 45. Rxf4 {[%clk 00:02:35]} c5 {[%clk
00:13:05]} {[%emt 00:00:11]} 46. Ne4 {[%clk 00:02:29]} {[%emt 00:00:10]} Bf5
{[%clk 00:13:02]} {[%emt 00:00:08]} 47. Nd6+ {[%emt 00:00:07]} Ke6 {[%clk
00:13:00]} {[%emt 00:00:05]} 48. Nxf5 {[%clk 00:02:32]} {[%emt 00:00:02]} gxf5
{[%clk 00:12:57]} {[%emt 00:00:02]} 49. Re1+ {[%clk 00:02:35]} {[%emt
00:00:07]} Kf7 {[%clk 00:12:57]} {[%emt 00:00:06]} 50. Rxf5 {[%clk 00:02:38]}
{[%emt 00:00:02]} Rhb8 {[%clk 00:12:56]} {[%emt 00:00:05]} 51. Rb1 {[%clk
00:02:30]} {[%emt 00:00:13]} Re8 {[%clk 00:12:58]} {[%emt 00:00:04]} 52. Kd2
{[%clk 00:02:32]} {[%emt 00:00:03]} Re3 {[%clk 00:13:01]} {[%emt 00:00:02]} 53.
Rxh5 {[%clk 00:01:56]} {[%emt 00:00:40]} Rxg3 {[%clk 00:13:04]} {[%emt
00:00:02]} 54. Rxc5 {[%clk 00:01:01]} {[%emt 00:01:01]} Rg2+ {[%clk 00:13:08]}
{[%emt 00:00:01]} 55. Kc1 {[%clk 00:01:05]} Rg1+ {[%clk 00:13:09]} {[%emt
00:00:03]} 56. Kc2 {[%clk 00:01:03]} {[%emt 00:00:07]} Rg2+ {[%clk 00:13:13]}
{[%emt 00:00:02]} 57. Kc1 {[%clk 00:01:08]} Rg1+ {[%clk 00:13:17]} 58. Kb2
{[%clk 00:01:05]} {[%emt 00:00:06]} Rxb3+ {[%clk 00:12:58]} {[%emt 00:00:26]}
59. Kxb3 {[%clk 00:01:09]} Rxb1+ {[%clk 00:13:02]} {[%emt 00:00:01]} 60. Kc2
{[%clk 00:01:13]} Rh1 {[%clk 00:13:03]} {[%emt 00:00:04]} 61. h5 {[%clk
00:01:16]} {[%emt 00:00:02]} Rh2+ {[%clk 00:13:05]} {[%emt 00:00:04]} 62. Kb3
{[%clk 00:01:17]} {[%emt 00:00:03]} Rd2 {[%clk 00:13:09]} {[%emt 00:00:01]} 63.
Rxa5 {[%clk 00:01:20]} {[%emt 00:00:02]} Rxd3+ {[%clk 00:13:13]} {[%emt
00:00:02]} 64. Kb4 {[%clk 00:01:24]} Rd1 {[%clk 00:13:14]} {[%emt 00:00:03]} 65.
Rd5 {[%clk 00:01:27]} {[%emt 00:00:01]} Rb1+ {[%clk 00:13:12]} {[%emt
00:00:07]} 66. Kc5 {[%clk 00:01:29]} {[%emt 00:00:03]} Ra1 {[%clk 00:13:16]}
{[%emt 00:00:02]} 67. Kb5 {[%clk 00:01:33]} {[%emt 00:00:01]} Rb1+ {[%clk
00:13:20]} 68. Kc6 {[%clk 00:01:35]} {[%emt 00:00:02]} Rb4 {[%clk 00:13:24]}
{[%emt 00:00:02]} 69. Rxd4 {[%clk 00:01:32]} {[%emt 00:00:10]} Rxa4 {[%clk
00:13:28]} 70. Rh4 {[%clk 00:01:02]} {[%emt 00:00:32]} Kg7 {[%clk 00:13:24]}
{[%emt 00:00:10]} 71. h6+ {[%clk 00:01:06]} {[%emt 00:00:02]} Kh7 {[%clk
00:13:28]} 72. Kd5 {[%clk 00:01:04]} {[%emt 00:00:05]} Ra1 {[%clk 00:13:25]}
{[%emt 00:00:11]} 73. c5 {[%clk 00:01:01]} {[%emt 00:00:07]} Rd1+ {[%clk
00:13:29]} {[%emt 00:00:02]} 74. Ke6 {[%clk 00:00:53]} {[%emt 00:00:11]} Rc1
{[%clk 00:13:32]} {[%emt 00:00:03]} 75. Kd6 {[%clk 00:00:57]} {[%emt 00:00:01]}
f5 {[%clk 00:13:30]} {[%emt 00:00:08]} 76. c6 {[%clk 00:01:00]} {[%emt
00:00:02]} f4 {[%clk 00:13:34]} {[%emt 00:00:01]} 77. Rxf4 {[%clk 00:00:59]}
{[%emt 00:00:06]} Kxh6 {[%clk 00:13:38]} {[%emt 00:00:01]} 78. c7 {[%clk
00:01:02]} {[%emt 00:00:01]} 1-0

[Event "Rapid Tournament (RAP)"]
[Site "Biel, Switzerland"]
[Date "2026.07.12"]
[Round "4.19"]
[White "Kwiatkowski, Maciej"]
[Black "Manko, Mariia"]
[Result "0-1"]
[TimeControl "15 + 5"]
[WhiteTitle "-"]
[BlackTitle "-"]
[WhiteFideId "1360175"]
[BlackFideId "14199220"]
[WhiteElo "1902"]
[BlackElo "2210"]

1. e4 {[%clk 00:15:07]} {[%emt 00:00:03]} c5 {[%clk 00:15:09]} 2. Nf3 {[%clk
00:15:09]} {[%emt 00:00:02]} Nc6 {[%clk 00:15:13]} {[%emt 00:00:01]} 3. c3
{[%clk 00:15:08]} {[%emt 00:00:06]} Nf6 {[%clk 00:15:15]} {[%emt 00:00:02]} 4.
Bd3 {[%clk 00:15:03]} {[%emt 00:00:11]} e5 {[%clk 00:14:55]} {[%emt 00:00:25]}
5. Bc2 {[%clk 00:14:48]} {[%emt 00:00:20]} d5 {[%clk 00:14:37]} {[%emt
00:00:22]} 6. exd5 {[%clk 00:14:48]} {[%emt 00:00:06]} Qxd5 {[%clk 00:14:33]}
{[%emt 00:00:10]} 7. d3 {[%clk 00:14:43]} {[%emt 00:00:10]} Bg4 {[%clk
00:13:55]} {[%emt 00:00:42]} 8. Nbd2 {[%clk 00:14:43]} {[%emt 00:00:05]} Be7
{[%clk 00:13:46]} {[%emt 00:00:14]} 9. Ne4 {[%clk 00:14:22]} {[%emt 00:00:26]}
Rd8 {[%clk 00:12:36]} {[%emt 00:01:15]} 10. Qe2 {[%clk 00:13:39]} {[%emt
00:00:48]} O-O {[%clk 00:12:01]} {[%emt 00:00:39]} 11. O-O {[%clk 00:13:35]}
{[%emt 00:00:10]} h6 {[%clk 00:11:18]} {[%emt 00:00:47]} 12. Be3 {[%clk
00:09:55]} {[%emt 00:03:45]} b6 {[%clk 00:10:23]} {[%emt 00:01:01]} 13. Rfd1
{[%clk 00:07:46]} {[%emt 00:02:14]} Kh8 {[%clk 00:09:51]} {[%emt 00:00:37]} 14.
h3 {[%clk 00:06:42]} {[%emt 00:01:09]} Bh5 {[%clk 00:09:23]} {[%emt 00:00:33]}
15. Bb3 {[%clk 00:05:39]} {[%emt 00:01:08]} Qd7 {[%clk 00:08:23]} {[%emt
00:01:04]} 16. Ba4 {[%clk 00:05:43]} {[%emt 00:00:02]} Qc8 {[%clk 00:04:41]}
{[%emt 00:03:47]} 17. Ng3 {[%clk 00:05:28]} {[%emt 00:00:20]} Bxf3 {[%clk
00:02:33]} {[%emt 00:02:13]} 18. Qxf3 {[%clk 00:05:29]} {[%emt 00:00:04]} Nd5
{[%clk 00:02:28]} {[%emt 00:00:09]} 19. Nf5 {[%clk 00:03:24]} {[%emt 00:02:10]}
Bf6 {[%clk 00:02:32]} {[%emt 00:00:02]} 20. a3 {[%clk 00:01:13]} {[%emt
00:02:16]} Nce7 {[%clk 00:02:27]} {[%emt 00:00:10]} 21. Nxe7 {[%clk 00:01:10]}
{[%emt 00:00:08]} Bxe7 {[%clk 00:02:29]} {[%emt 00:00:03]} 22. Bb3 {[%clk
00:01:04]} {[%emt 00:00:11]} Nxe3 {[%clk 00:02:02]} {[%emt 00:00:32]} 23. Qxe3
{[%clk 00:00:59]} {[%emt 00:00:10]} Qc7 {[%clk 00:01:50]} {[%emt 00:00:17]} 24.
Re1 {[%clk 00:01:01]} {[%emt 00:00:03]} Bd6 {[%clk 00:01:50]} {[%emt 00:00:05]}
25. Rad1 {[%clk 00:01:01]} {[%emt 00:00:05]} f5 {[%clk 00:01:51]} {[%emt
00:00:03]} 26. Bc4 {[%clk 00:00:57]} {[%emt 00:00:10]} Rf6 {[%clk 00:01:39]}
{[%emt 00:00:17]} 27. Qf3 {[%clk 00:00:41]} {[%emt 00:00:20]} Rdf8 {[%clk
00:01:33]} {[%emt 00:00:11]} 28. Re2 {[%clk 00:00:35]} {[%emt 00:00:11]} g5
{[%clk 00:01:31]} {[%emt 00:00:07]} 29. Qh5 {[%clk 00:00:34]} {[%emt 00:00:06]}
Qg7 {[%clk 00:01:30]} {[%emt 00:00:06]} 30. d4 {[%clk 00:00:31]} {[%emt
00:00:10]} cxd4 {[%clk 00:01:28]} {[%emt 00:00:06]} 31. cxd4 {[%clk 00:00:34]}
{[%emt 00:00:02]} e4 {[%clk 00:01:31]} {[%emt 00:00:01]} 32. Bb3 {[%clk
00:00:23]} {[%emt 00:00:17]} Rg6 {[%clk 00:01:12]} {[%emt 00:00:24]} 33. Bc2
{[%clk 00:00:23]} {[%emt 00:00:05]} g4 {[%clk 00:01:12]} {[%emt 00:00:05]} 34.
b4 {[%clk 00:00:12]} {[%emt 00:00:17]} gxh3 {[%clk 00:01:04]} {[%emt 00:00:12]}
35. Qxh3 {[%clk 00:00:15]} {[%emt 00:00:01]} Rg8 {[%clk 00:01:01]} {[%emt
00:00:08]} 36. f3 {[%clk 00:00:15]} {[%emt 00:00:06]} Rg3 {[%clk 00:00:51]}
{[%emt 00:00:15]} 37. Qh1 {[%clk 00:00:10]} {[%emt 00:00:09]} exf3 {[%clk
00:00:50]} {[%emt 00:00:07]} 38. Re6 {[%clk 00:00:00]} {[%emt 00:00:10]} 0-1

[Event "Rapid Tournament (RAP)"]
[Site "Biel, Switzerland"]
[Date "2026.07.12"]
[Round "4.20"]
[White "Frey, Fabian"]
[Black "Berezovskii, Arina"]
[Result "0-1"]
[TimeControl "15 + 5"]
[WhiteTitle "-"]
[BlackTitle "-"]
[WhiteFideId "1336487"]
[BlackFideId "34449850"]
[WhiteElo "2207"]
[BlackElo "1895"]

1. d4 {[%clk 00:15:02]} {[%emt 00:00:02]} Nf6 {[%clk 00:15:08]} {[%emt
00:00:08]} 2. Bg5 {[%clk 00:15:05]} {[%emt 00:00:01]} d6 {[%clk 00:14:32]}
{[%emt 00:00:41]} 3. Nf3 {[%clk 00:14:50]} {[%emt 00:00:19]} e6 {[%clk
00:14:18]} {[%emt 00:00:21]} 4. Nc3 {[%clk 00:14:38]} {[%emt 00:00:17]} Be7
{[%clk 00:14:19]} {[%emt 00:00:03]} 5. e4 {[%clk 00:14:42]} {[%emt 00:00:01]}
O-O {[%clk 00:13:51]} {[%emt 00:00:34]} 6. Bd3 {[%clk 00:14:44]} {[%emt
00:00:02]} h6 {[%clk 00:13:35]} {[%emt 00:00:22]} 7. Bxf6 {[%clk 00:14:37]}
{[%emt 00:00:12]} Bxf6 {[%clk 00:13:37]} {[%emt 00:00:03]} 8. e5 {[%clk
00:14:41]} Be7 {[%clk 00:13:09]} {[%emt 00:00:33]} 9. Qe2 {[%clk 00:14:43]}
{[%emt 00:00:03]} d5 {[%clk 00:12:42]} {[%emt 00:00:32]} 10. O-O-O {[%clk
00:14:21]} {[%emt 00:00:25]} c5 {[%clk 00:12:12]} {[%emt 00:00:36]} 11. dxc5
{[%clk 00:14:24]} {[%emt 00:00:02]} Bxc5 {[%clk 00:11:45]} {[%emt 00:00:33]} 12.
h4 {[%clk 00:14:28]} {[%emt 00:00:01]} f6 {[%clk 00:07:05]} {[%emt 00:04:45]}
13. Rdf1 {[%clk 00:13:03]} {[%emt 00:01:29]} Nc6 {[%clk 00:06:41]} {[%emt
00:00:30]} 14. g4 {[%clk 00:12:34]} {[%emt 00:00:33]} fxe5 {[%clk 00:05:53]}
{[%emt 00:00:52]} 15. Nxe5 {[%clk 00:12:33]} {[%emt 00:00:07]} Nxe5 {[%clk
00:05:52]} {[%emt 00:00:06]} 16. Qxe5 {[%clk 00:12:36]} {[%emt 00:00:02]} Qf6
{[%clk 00:04:58]} {[%emt 00:00:59]} 17. Qxf6 {[%clk 00:12:40]} {[%emt
00:00:02]} Rxf6 {[%clk 00:04:54]} {[%emt 00:00:09]} 18. g5 {[%clk 00:12:16]}
{[%emt 00:00:29]} Rxf2 {[%clk 00:04:26]} {[%emt 00:00:32]} 19. gxh6 {[%clk
00:11:52]} {[%emt 00:00:29]} Be3+ {[%clk 00:03:34]} {[%emt 00:00:59]} 20. Kb1
{[%clk 00:10:19]} {[%emt 00:01:36]} Rxf1+ {[%clk 00:03:19]} {[%emt 00:00:20]}
21. Rxf1 {[%clk 00:10:23]} Bxh6 {[%clk 00:03:21]} {[%emt 00:00:03]} 22. Bb5
{[%clk 00:10:27]} Bd2 {[%clk 00:02:12]} {[%emt 00:01:14]} 23. Be8 {[%clk
00:09:27]} {[%emt 00:01:05]} Bxc3 {[%clk 00:01:59]} {[%emt 00:00:19]} 24. bxc3
{[%clk 00:09:31]} {[%emt 00:00:01]} b6 {[%clk 00:01:49]} {[%emt 00:00:15]} 25.
Bf7+ {[%clk 00:09:20]} {[%emt 00:00:16]} Kh8 {[%clk 00:01:39]} {[%emt
00:00:15]} 26. Re1 {[%clk 00:09:16]} {[%emt 00:00:09]} Bd7 {[%emt 00:00:34]} 27.
Re5 {[%clk 00:09:11]} g6 {[%clk 00:01:20]} {[%emt 00:00:05]} 28. Bxg6 {[%clk
00:08:19]} {[%emt 00:00:57]} Kg7 {[%clk 00:01:10]} {[%emt 00:00:15]} 29. h5
{[%clk 00:08:09]} {[%emt 00:00:14]} Kf6 {[%clk 00:00:43]} {[%emt 00:00:32]} 30.
Re2 {[%clk 00:08:13]} Be8 {[%clk 00:00:38]} {[%emt 00:00:11]} 31. Rf2+ {[%clk
00:08:10]} {[%emt 00:00:08]} Kg7 {[%clk 00:00:35]} {[%emt 00:00:08]} 32. Rg2
{[%clk 00:07:21]} {[%emt 00:00:54]} Bxg6 {[%clk 00:00:27]} {[%emt 00:00:13]} 33.
Rxg6+ {[%clk 00:07:24]} {[%emt 00:00:02]} Kf7 {[%clk 00:00:27]} {[%emt
00:00:04]} 34. Rh6 {[%clk 00:07:28]} Rg8 {[%clk 00:00:17]} {[%emt 00:00:15]} 35.
Rh7+ {[%clk 00:06:52]} {[%emt 00:00:41]} Rg7 {[%clk 00:00:19]} {[%emt
00:00:04]} 36. Rh8 {[%clk 00:06:56]} {[%emt 00:00:01]} Rg8 {[%clk 00:00:22]}
{[%emt 00:00:01]} 37. Rh6 {[%clk 00:06:48]} {[%emt 00:00:14]} Rg5 {[%clk
00:00:19]} {[%emt 00:00:07]} 38. Kc1 {[%clk 00:06:46]} {[%emt 00:00:07]} Rg2
{[%clk 00:00:13]} {[%emt 00:00:11]} 39. a3 {[%clk 00:06:31]} {[%emt 00:00:21]}
b5 {[%clk 00:00:08]} {[%emt 00:00:10]} 40. Kb2 {[%clk 00:06:19]} {[%emt
00:00:16]} a6 {[%clk 00:00:12]} {[%emt 00:00:02]} 41. Kb3 {[%clk 00:06:22]}
{[%emt 00:00:02]} Rg3 {[%clk 00:00:10]} {[%emt 00:00:06]} 42. Rh7+ {[%emt
00:00:16]} Rg7 {[%clk 00:00:14]} 43. Rh8 {[%clk 00:06:14]} {[%emt 00:00:04]}
Rg8 {[%clk 00:00:18]} 44. Rxg8 {[%clk 00:05:22]} {[%emt 00:00:57]} Kxg8 {[%clk
00:00:21]} {[%emt 00:00:01]} 45. Kb4 {[%clk 00:05:26]} e5 {[%clk 00:00:17]}
{[%emt 00:00:09]} 46. Kc5 {[%clk 00:05:30]} e4 {[%clk 00:00:21]} {[%emt
00:00:01]} 47. Kd4 {[%clk 00:05:02]} {[%emt 00:00:33]} Kg7 {[%clk 00:00:21]}
{[%emt 00:00:05]} 48. c4 {[%clk 00:03:44]} {[%emt 00:01:23]} bxc4 {[%clk
00:00:19]} {[%emt 00:00:07]} 49. a4 {[%clk 00:03:46]} {[%emt 00:00:04]} a5
{[%clk 00:00:19]} {[%emt 00:00:05]} 50. c3 {[%clk 00:03:45]} {[%emt 00:00:06]}
Kh6 {[%clk 00:00:17]} {[%emt 00:00:06]} 51. Kxd5 {[%clk 00:03:49]} {[%emt
00:00:01]} e3 {[%clk 00:00:21]} {[%emt 00:00:02]} 52. Kxc4 {[%clk 00:03:53]} e2
{[%clk 00:00:23]} {[%emt 00:00:03]} 53. Kb5 {[%clk 00:03:54]} {[%emt 00:00:03]}
e1=Q {[%emt 00:00:03]} 54. Kxa5 {[%clk 00:03:58]} Qxc3+ {[%clk 00:00:28]}
{[%emt 00:00:03]} 55. Kb5 {[%clk 00:04:02]} Qc7 {[%clk 00:00:28]} {[%emt
00:00:04]} 56. Ka6 {[%clk 00:04:03]} {[%emt 00:00:04]} Qc6+ {[%clk 00:00:27]}
{[%emt 00:00:06]} 57. Ka5 {[%clk 00:04:07]} {[%emt 00:00:02]} Qa8+ {[%clk
00:00:31]} {[%emt 00:00:01]} 58. Kb5 {[%clk 00:04:10]} {[%emt 00:00:01]} Kxh5
{[%clk 00:00:33]} {[%emt 00:00:02]} 59. a5 {[%clk 00:04:15]} Qa7 {[%clk
00:00:34]} {[%emt 00:00:04]} 60. a6 {[%clk 00:04:15]} {[%emt 00:00:05]} Kg6
{[%clk 00:00:38]} {[%emt 00:00:01]} 0-1